[Event "Late-Titled-Tuesday-Blitz-January-23-2024"]
[Site "Chess.com"]
[Date "2024.01.23"]
[Round "2"]
[White "Slovak_fighter2000"]
[Black "diamonds13"]
[Result "0-1"]
[WhiteElo "2521"]
[BlackElo "2349"]
[TimeControl "180+1"]
[EndTime "14:17:41 PST"]
[Termination "diamonds13 won on time"]

1. d4 {[%clk 0:03:00.9]} 1... Nf6 {[%clk 0:02:54.7]} 2. Bf4 {[%clk 0:02:59]}
2... c5 {[%clk 0:02:50.3]} 3. d5 {[%clk 0:02:56.1]} 3... d6 {[%clk 0:02:49.8]}
4. Nc3 {[%clk 0:02:46.7]} 4... g6 {[%clk 0:02:49.9]} 5. e4 {[%clk 0:02:43.6]}
5... Bg7 {[%clk 0:02:50]} 6. Qd2 {[%clk 0:02:36.9]} 6... Nbd7 {[%clk 0:02:43.6]}
7. h4 {[%clk 0:02:25.4]} 7... h5 {[%clk 0:02:42.8]} 8. Nf3 {[%clk 0:02:25]} 8...
Ng4 {[%clk 0:02:42.2]} 9. Be2 {[%clk 0:02:05]} 9... a6 {[%clk 0:02:34]} 10. a4
{[%clk 0:02:03.1]} 10... b6 {[%clk 0:02:32.9]} 11. Bg3 {[%clk 0:01:02.9]} 11...
Bh6 {[%clk 0:02:25.1]} 12. Qd1 {[%clk 0:00:57.4]} 12... Nde5 {[%clk 0:02:12.2]}
13. Nxe5 {[%clk 0:00:57.2]} 13... dxe5 {[%clk 0:02:10.7]} 14. Bxg4 {[%clk
0:00:49.2]} 14... Bxg4 {[%clk 0:01:56.3]} 15. f3 {[%clk 0:00:49.1]} 15... Bd7
{[%clk 0:01:52.8]} 16. Bxe5 {[%clk 0:00:48.8]} 16... f6 {[%clk 0:01:52.4]} 17.
Bg3 {[%clk 0:00:48.2]} 17... b5 {[%clk 0:01:51.2]} 18. axb5 {[%clk 0:00:47.8]}
18... axb5 {[%clk 0:01:51.4]} 19. O-O {[%clk 0:00:44.4]} 19... Rxa1 {[%clk
0:01:45.8]} 20. Qxa1 {[%clk 0:00:44.1]} 20... O-O {[%clk 0:01:39.6]} 21. Qa7
{[%clk 0:00:36.6]} 21... b4 {[%clk 0:01:38.2]} 22. Ne2 {[%clk 0:00:34.7]} 22...
Bb5 {[%clk 0:01:36.6]} 23. Re1 {[%clk 0:00:19]} 23... Bd2 {[%clk 0:01:33]} 24.
Nf4 {[%clk 0:00:15.8]} 24... Bxe1 {[%clk 0:01:23.1]} 25. Bxe1 {[%clk 0:00:15.3]}
25... Qd6 {[%clk 0:01:10.8]} 26. Ne6 {[%clk 0:00:12.5]} 26... Rc8 {[%clk
0:01:06.7]} 27. Bf2 {[%clk 0:00:11.3]} 27... c4 {[%clk 0:00:53.5]} 28. Bc5
{[%clk 0:00:06.4]} 28... Qd7 {[%clk 0:00:53.8]} 29. Qxd7 {[%clk 0:00:05]} 29...
Bxd7 {[%clk 0:00:53.2]} 30. Bxe7 {[%clk 0:00:01.7]} 30... Bxe6 {[%clk
0:00:53.3]} 31. dxe6 {[%clk 0:00:02.6]} 31... b3 {[%clk 0:00:49.1]} 32. cxb3
{[%clk 0:00:02.3]} 32... cxb3 {[%clk 0:00:49.2]} 33. Bxf6 {[%clk 0:00:03.2]}
33... Re8 {[%clk 0:00:48.3]} 34. e7 {[%clk 0:00:03.1]} 34... Kf7 {[%clk
0:00:48.5]} 35. e5 {[%clk 0:00:02.8]} 35... Rc8 {[%clk 0:00:45.7]} 36. Kh2
{[%clk 0:00:03.2]} 36... Rc2 {[%clk 0:00:39]} 37. Kg3 {[%clk 0:00:03.5]} 37...
Ke8 {[%clk 0:00:37.4]} 38. e6 {[%clk 0:00:02.9]} 38... Re2 {[%clk 0:00:37.4]}
39. Kf4 {[%clk 0:00:02.4]} 39... Rxe6 {[%clk 0:00:37.1]} 40. Kg5 {[%clk
0:00:02.7]} 40... Re2 {[%clk 0:00:37]} 41. g4 {[%clk 0:00:02.7]} 41... Rf2
{[%clk 0:00:32.6]} 0-1

[Event "Late-Titled-Tuesday-Blitz-January-23-2024"]
[Site "Chess.com"]
[Date "2024.01.23"]
[Round "2"]
[White "dozer80"]
[Black "pr1105"]
[Result "1-0"]
[WhiteElo "2715"]
[BlackElo "2296"]
[TimeControl "180+1"]
[EndTime "14:17:45 PST"]
[Termination "dozer80 won by resignation"]

1. e4 {[%clk 0:03:00.9]} 1... e5 {[%clk 0:02:54]} 2. Nc3 {[%clk 0:02:59.1]} 2...
Nc6 {[%clk 0:02:52.9]} 3. Bc4 {[%clk 0:02:59]} 3... Nf6 {[%clk 0:02:50.8]} 4. d3
{[%clk 0:02:59.3]} 4... Na5 {[%clk 0:02:43.2]} 5. Nge2 {[%clk 0:02:58]} 5... Be7
{[%clk 0:02:40.5]} 6. a4 {[%clk 0:02:50.6]} 6... Nxc4 {[%clk 0:02:40.5]} 7. dxc4
{[%clk 0:02:51.5]} 7... O-O {[%clk 0:02:39.9]} 8. Qd3 {[%clk 0:02:46.3]} 8... d6
{[%clk 0:02:39.8]} 9. f3 {[%clk 0:02:44.1]} 9... Be6 {[%clk 0:02:40.1]} 10. Be3
{[%clk 0:02:43.6]} 10... Nd7 {[%clk 0:02:37.1]} 11. b3 {[%clk 0:02:32.5]} 11...
f5 {[%clk 0:02:27.1]} 12. exf5 {[%clk 0:02:23.9]} 12... Bxf5 {[%clk 0:02:25.5]}
13. Qd2 {[%clk 0:02:24.4]} 13... Bh4+ {[%clk 0:02:11.4]} 14. Ng3 {[%clk
0:02:23.4]} 14... Bg6 {[%clk 0:02:05.5]} 15. O-O {[%clk 0:02:21.6]} 15... Nf6
{[%clk 0:01:54.7]} 16. a5 {[%clk 0:02:13.2]} 16... a6 {[%clk 0:01:54.5]} 17.
Nge4 {[%clk 0:01:39.8]} 17... Nxe4 {[%clk 0:01:53.7]} 18. fxe4 {[%clk
0:01:39.9]} 18... Kh8 {[%clk 0:01:46.7]} 19. g3 {[%clk 0:01:30.7]} 19... Bf6
{[%clk 0:01:38.7]} 20. Nd5 {[%clk 0:01:27.6]} 20... Bxe4 {[%clk 0:01:33.6]} 21.
Rf2 {[%clk 0:01:14.7]} 21... Bxd5 {[%clk 0:01:23.5]} 22. cxd5 {[%clk 0:01:14.6]}
22... Qd7 {[%clk 0:01:20]} 23. Raf1 {[%clk 0:01:13.9]} 23... Be7 {[%clk
0:01:19.3]} 24. Qd3 {[%clk 0:01:11.6]} 24... Kg8 {[%clk 0:01:15.6]} 25. c4
{[%clk 0:01:09.1]} 25... Rxf2 {[%clk 0:01:14.4]} 26. Rxf2 {[%clk 0:01:09]} 26...
Rf8 {[%clk 0:01:15.3]} 27. Qe4 {[%clk 0:01:08.2]} 27... g6 {[%clk 0:01:13.1]}
28. g4 {[%clk 0:00:46]} 28... Rxf2 {[%clk 0:01:08.5]} 29. Kxf2 {[%clk
0:00:44.9]} 29... Bh4+ {[%clk 0:01:08.3]} 30. Kg2 {[%clk 0:00:43.7]} 30... Qe7
{[%clk 0:01:06.3]} 31. b4 {[%clk 0:00:42]} 31... Bg5 {[%clk 0:01:06.1]} 32. Bf2
{[%clk 0:00:41]} 32... Bf4 {[%clk 0:01:03.7]} 33. c5 {[%clk 0:00:36.7]} 33...
Qd7 {[%clk 0:01:02.8]} 34. h3 {[%clk 0:00:34.1]} 34... Qb5 {[%clk 0:00:54.2]}
35. Bg1 {[%clk 0:00:17.9]} 35... Kf7 {[%clk 0:00:47.1]} 36. Bf2 {[%clk
0:00:17.5]} 36... dxc5 {[%clk 0:00:39]} 37. bxc5 {[%clk 0:00:17]} 37... Qxa5
{[%clk 0:00:28.9]} 38. d6 {[%clk 0:00:16.8]} 38... cxd6 {[%clk 0:00:29.2]} 39.
Qd5+ {[%clk 0:00:17.1]} 39... Ke8 {[%clk 0:00:25]} 40. Qe6+ {[%clk 0:00:16.3]}
40... Kf8 {[%clk 0:00:18]} 41. cxd6 {[%clk 0:00:16.8]} 41... Qd8 {[%clk
0:00:16.9]} 42. d7 {[%clk 0:00:16.7]} 42... Qe7 {[%clk 0:00:14.6]} 43. Bc5
{[%clk 0:00:15]} 43... Qxc5 {[%clk 0:00:12.8]} 44. d8=Q+ {[%clk 0:00:15]} 1-0

[Event "Late-Titled-Tuesday-Blitz-January-23-2024"]
[Site "Chess.com"]
[Date "2024.01.23"]
[Round "2"]
[White "ChristopherYoo"]
[Black "Revan_2002"]
[Result "1-0"]
[WhiteElo "2971"]
[BlackElo "2432"]
[TimeControl "180+1"]
[EndTime "14:17:47 PST"]
[Termination "ChristopherYoo won on time"]

1. d4 {[%clk 0:03:00.9]} 1... Nf6 {[%clk 0:02:59.8]} 2. c4 {[%clk 0:03:00.9]}
2... g6 {[%clk 0:02:59.4]} 3. Nf3 {[%clk 0:03:01.1]} 3... Bg7 {[%clk 0:02:58.2]}
4. g3 {[%clk 0:03:01.7]} 4... O-O {[%clk 0:02:56.8]} 5. Bg2 {[%clk 0:03:02.1]}
5... d6 {[%clk 0:02:57.5]} 6. O-O {[%clk 0:03:02.3]} 6... Nbd7 {[%clk
0:02:58.2]} 7. Nc3 {[%clk 0:03:02.3]} 7... e5 {[%clk 0:02:58.9]} 8. e4 {[%clk
0:03:02.2]} 8... c6 {[%clk 0:02:57.5]} 9. Re1 {[%clk 0:03:01.8]} 9... exd4
{[%clk 0:02:52.9]} 10. Nxd4 {[%clk 0:03:01.6]} 10... Nc5 {[%clk 0:02:52.7]} 11.
h3 {[%clk 0:03:00.9]} 11... a5 {[%clk 0:02:51.3]} 12. Bf4 {[%clk 0:03:00.8]}
12... Re8 {[%clk 0:02:47.7]} 13. Qd2 {[%clk 0:03:00.6]} 13... a4 {[%clk
0:02:42]} 14. Rad1 {[%clk 0:02:59.8]} 14... Nh5 {[%clk 0:02:25.6]} 15. Bg5
{[%clk 0:02:57.3]} 15... Qa5 {[%clk 0:02:21.5]} 16. g4 {[%clk 0:02:51.8]} 16...
Nf6 {[%clk 0:02:21]} 17. Qf4 {[%clk 0:02:50.6]} 17... Nfd7 {[%clk 0:02:06.2]}
18. Bh6 {[%clk 0:02:48.5]} 18... Ne5 {[%clk 0:01:39.4]} 19. Bxg7 {[%clk
0:02:46.6]} 19... Kxg7 {[%clk 0:01:40.3]} 20. g5 {[%clk 0:02:05.1]} 20... Nxc4
{[%clk 0:01:39.9]} 21. Nf5+ {[%clk 0:01:28.6]} 21... Bxf5 {[%clk 0:01:11.4]} 22.
exf5 {[%clk 0:01:27.6]} 22... Rxe1+ {[%clk 0:01:03.8]} 23. Rxe1 {[%clk
0:01:27.5]} 23... Nd3 {[%clk 0:01:04.5]} 24. Qd4+ {[%clk 0:01:15.8]} 24... Nce5
{[%clk 0:00:57.2]} 25. Re3 {[%clk 0:01:08]} 25... Qc5 {[%clk 0:00:45.6]} 26.
Rxd3 {[%clk 0:01:06.9]} 26... Qxd4 {[%clk 0:00:40.8]} 27. Rxd4 {[%clk
0:01:07.8]} 27... d5 {[%clk 0:00:41.5]} 28. f6+ {[%clk 0:01:06.7]} 28... Kf8
{[%clk 0:00:40.4]} 29. Rxa4 {[%clk 0:01:06.9]} 29... Rd8 {[%clk 0:00:33.9]} 30.
Ne2 {[%clk 0:01:01.1]} 30... Nd3 {[%clk 0:00:28.1]} 31. Ra7 {[%clk 0:00:54.1]}
31... Nxb2 {[%clk 0:00:25.3]} 32. Rxb7 {[%clk 0:00:53.9]} 32... Nc4 {[%clk
0:00:25.9]} 33. Nd4 {[%clk 0:00:54]} 33... Ne5 {[%clk 0:00:18.6]} 34. f4 {[%clk
0:00:52.9]} 34... Nd3 {[%clk 0:00:18.9]} 35. Nxc6 {[%clk 0:00:52.3]} 35... Rc8
{[%clk 0:00:18.4]} 36. Bxd5 {[%clk 0:00:52.3]} 36... Nxf4 {[%clk 0:00:18.7]} 37.
Rxf7+ {[%clk 0:00:52.5]} 37... Ke8 {[%clk 0:00:18.6]} 38. Re7+ {[%clk
0:00:52.1]} 38... Kf8 {[%clk 0:00:18.8]} 39. Nd4 {[%clk 0:00:45.1]} 39... Nxh3+
{[%clk 0:00:07.6]} 40. Kh2 {[%clk 0:00:44.8]} 40... Nxg5 {[%clk 0:00:08.5]} 41.
a4 {[%clk 0:00:42.4]} 41... Rb8 {[%clk 0:00:03.7]} 42. a5 {[%clk 0:00:40.5]}
42... Rb2+ {[%clk 0:00:03.7]} 43. Kg3 {[%clk 0:00:39.5]} 43... Rd2 {[%clk
0:00:01.3]} 44. Ne6+ {[%clk 0:00:39.8]} 44... Nxe6 {[%clk 0:00:01.9]} 45. Bxe6
{[%clk 0:00:40.7]} 45... Rd3+ {[%clk 0:00:01.3]} 46. Kf4 {[%clk 0:00:40.8]}
46... Ra3 {[%clk 0:00:01.8]} 47. Ra7 {[%clk 0:00:40.7]} 47... Ra4+ {[%clk
0:00:01.6]} 48. Ke5 {[%clk 0:00:41.1]} 1-0

[Event "Late-Titled-Tuesday-Blitz-January-23-2024"]
[Site "Chess.com"]
[Date "2024.01.23"]
[Round "2"]
[White "Felix-Rose"]
[Black "JoakimVonAnd"]
[Result "0-1"]
[WhiteElo "2326"]
[BlackElo "2630"]
[TimeControl "180+1"]
[EndTime "14:17:51 PST"]
[Termination "JoakimVonAnd won by checkmate"]

1. e4 {[%clk 0:03:00]} 1... g6 {[%clk 0:03:00.1]} 2. d4 {[%clk 0:02:59.8]} 2...
Bg7 {[%clk 0:03:00.7]} 3. Nf3 {[%clk 0:03:00.4]} 3... a6 {[%clk 0:03:00.3]} 4.
Nc3 {[%clk 0:02:59]} 4... b5 {[%clk 0:03:00.4]} 5. Bd3 {[%clk 0:02:58.7]} 5...
Bb7 {[%clk 0:03:00.3]} 6. O-O {[%clk 0:02:50.4]} 6... d6 {[%clk 0:03:00.7]} 7.
a4 {[%clk 0:02:48.9]} 7... b4 {[%clk 0:02:59.7]} 8. Ne2 {[%clk 0:02:49.1]} 8...
Nd7 {[%clk 0:02:58.7]} 9. Ng3 {[%clk 0:02:48.1]} 9... c5 {[%clk 0:02:56.8]} 10.
c3 {[%clk 0:02:46.4]} 10... bxc3 {[%clk 0:02:40.3]} 11. bxc3 {[%clk 0:02:46.2]}
11... Ngf6 {[%clk 0:02:40.7]} 12. a5 {[%clk 0:02:37.8]} 12... O-O {[%clk
0:02:40.4]} 13. h3 {[%clk 0:02:34.4]} 13... Qc7 {[%clk 0:02:40]} 14. Be3 {[%clk
0:02:29.2]} 14... Rab8 {[%clk 0:02:34.6]} 15. Qe2 {[%clk 0:02:27.7]} 15... Qc6
{[%clk 0:02:19.3]} 16. Rfb1 {[%clk 0:02:15.8]} 16... e6 {[%clk 0:02:07.4]} 17.
Rb2 {[%clk 0:01:57.6]} 17... d5 {[%clk 0:01:36.7]} 18. e5 {[%clk 0:01:32.6]}
18... Ne4 {[%clk 0:01:36.5]} 19. Bxe4 {[%clk 0:01:16.2]} 19... dxe4 {[%clk
0:01:36.7]} 20. Nd2 {[%clk 0:01:12.1]} 20... Ba8 {[%clk 0:01:29]} 21. Rxb8
{[%clk 0:01:02.6]} 21... Rxb8 {[%clk 0:01:29.9]} 22. Ndxe4 {[%clk 0:00:47.8]}
22... cxd4 {[%clk 0:01:22.7]} 23. cxd4 {[%clk 0:00:44.2]} 23... Rb5 {[%clk
0:01:09.2]} 24. f3 {[%clk 0:00:35.2]} 24... Bf8 {[%clk 0:00:24.3]} 25. Rc1
{[%clk 0:00:31.4]} 25... Qb7 {[%clk 0:00:24.6]} 26. Qd2 {[%clk 0:00:23.4]} 26...
Bb4 {[%clk 0:00:19.3]} 27. Qd1 {[%clk 0:00:15.3]} 27... Rxa5 {[%clk 0:00:19.1]}
28. Rb1 {[%clk 0:00:13.5]} 28... Rb5 {[%clk 0:00:19.5]} 29. Rc1 {[%clk
0:00:11.6]} 29... a5 {[%clk 0:00:19.7]} 30. Kh2 {[%clk 0:00:11.6]} 30... Rb6
{[%clk 0:00:18]} 31. d5 {[%clk 0:00:11.4]} 31... exd5 {[%clk 0:00:14.6]} 32.
Bxb6 {[%clk 0:00:11.8]} 32... dxe4 {[%clk 0:00:15.2]} 33. Bc7 {[%clk 0:00:07.3]}
33... exf3 {[%clk 0:00:15.2]} 34. Qxd7 {[%clk 0:00:07.3]} 34... f2 {[%clk
0:00:07.9]} 35. Qd8+ {[%clk 0:00:06.8]} 35... Kg7 {[%clk 0:00:08.1]} 36. Qf6+
{[%clk 0:00:07]} 36... Kg8 {[%clk 0:00:08.7]} 37. Bd6 {[%clk 0:00:07.5]} 37...
Qxg2# {[%clk 0:00:07.9]} 0-1

[Event "Late-Titled-Tuesday-Blitz-January-23-2024"]
[Site "Chess.com"]
[Date "2024.01.23"]
[Round "2"]
[White "Nor1lsk"]
[Black "Hikaru"]
[Result "0-1"]
[WhiteElo "2698"]
[BlackElo "3304"]
[TimeControl "180+1"]
[EndTime "14:17:52 PST"]
[Termination "Hikaru won by resignation"]

1. e4 {[%clk 0:03:00.9]} 1... g6 {[%clk 0:02:58.6]} 2. g3 {[%clk 0:03:00.4]}
2... c5 {[%clk 0:02:58.6]} 3. Bg2 {[%clk 0:03:00.2]} 3... Bg7 {[%clk 0:02:59.2]}
4. d3 {[%clk 0:03:00.6]} 4... Nc6 {[%clk 0:02:58.5]} 5. f4 {[%clk 0:03:01.2]}
5... d6 {[%clk 0:02:55.6]} 6. Nf3 {[%clk 0:03:01.4]} 6... Nh6 {[%clk 0:02:55.9]}
7. h3 {[%clk 0:03:00.8]} 7... f5 {[%clk 0:02:56.3]} 8. O-O {[%clk 0:03:00.7]}
8... O-O {[%clk 0:02:56]} 9. c3 {[%clk 0:03:00.7]} 9... Rb8 {[%clk 0:02:55.4]}
10. Na3 {[%clk 0:03:00.2]} 10... b5 {[%clk 0:02:55.5]} 11. Nc2 {[%clk
0:02:59.7]} 11... b4 {[%clk 0:02:55.5]} 12. c4 {[%clk 0:02:44.9]} 12... Nf7
{[%clk 0:02:45.5]} 13. Ne3 {[%clk 0:02:41.4]} 13... fxe4 {[%clk 0:02:40.7]} 14.
dxe4 {[%clk 0:02:41]} 14... Nd4 {[%clk 0:02:41.3]} 15. Nxd4 {[%clk 0:02:24.5]}
15... Bxd4 {[%clk 0:02:34.8]} 16. Kh2 {[%clk 0:02:23.8]} 16... e6 {[%clk
0:02:29.9]} 17. Qe2 {[%clk 0:02:16]} 17... a5 {[%clk 0:02:30.1]} 18. Rd1 {[%clk
0:02:15.6]} 18... Qe7 {[%clk 0:02:30.1]} 19. Rb1 {[%clk 0:02:11.1]} 19... a4
{[%clk 0:02:30.2]} 20. Nc2 {[%clk 0:02:00]} 20... Bg7 {[%clk 0:02:29.5]} 21. b3
{[%clk 0:01:58.9]} 21... axb3 {[%clk 0:02:12.1]} 22. axb3 {[%clk 0:01:59.8]}
22... Bb7 {[%clk 0:02:12.4]} 23. Bb2 {[%clk 0:01:54.6]} 23... Bxb2 {[%clk
0:02:10.7]} 24. Rxb2 {[%clk 0:01:55.5]} 24... g5 {[%clk 0:02:09.6]} 25. Ne3
{[%clk 0:01:50.8]} 25... gxf4 {[%clk 0:02:09]} 26. gxf4 {[%clk 0:01:51.7]} 26...
Kh8 {[%clk 0:02:05.9]} 27. Rbd2 {[%clk 0:01:51.5]} 27... Qf6 {[%clk 0:02:03.8]}
28. Rf1 {[%clk 0:01:42.6]} 28... Qg7 {[%clk 0:01:59.6]} 29. Qh5 {[%clk
0:01:13.9]} 29... Rg8 {[%clk 0:01:55.5]} 30. Ng4 {[%clk 0:01:10.6]} 30... Rbf8
{[%clk 0:01:51.4]} 31. Ra2 {[%clk 0:01:00.5]} 31... Nd8 {[%clk 0:01:48.8]} 32.
e5 {[%clk 0:00:42.3]} 32... Bxg2 {[%clk 0:01:42.9]} 33. Rxg2 {[%clk 0:00:41.5]}
33... dxe5 {[%clk 0:01:15.9]} 34. Qxe5 {[%clk 0:00:41.4]} 34... Rf5 {[%clk
0:01:16.2]} 35. Qxg7+ {[%clk 0:00:39.5]} 35... Rxg7 {[%clk 0:01:17.1]} 36. Ne5
{[%clk 0:00:37.5]} 36... Nf7 {[%clk 0:01:11.7]} 37. Rxg7 {[%clk 0:00:32]} 37...
Kxg7 {[%clk 0:01:12.6]} 38. Nxf7 {[%clk 0:00:32.4]} 38... Kxf7 {[%clk
0:01:13.2]} 39. Kg3 {[%clk 0:00:32.3]} 39... e5 {[%clk 0:01:13]} 40. Rf3 {[%clk
0:00:29.2]} 40... Ke6 {[%clk 0:01:10.6]} 41. h4 {[%clk 0:00:19.1]} 41... Rf8
{[%clk 0:00:57.2]} 42. Rf2 {[%clk 0:00:13.5]} 42... Rf7 {[%clk 0:00:45.6]} 43.
Rf3 {[%clk 0:00:13.2]} 43... e4 {[%clk 0:00:43.9]} 44. Rf1 {[%clk 0:00:12.6]}
44... Rg7+ {[%clk 0:00:41.2]} 45. Kf2 {[%clk 0:00:13]} 45... Kf5 {[%clk
0:00:40.6]} 46. Ke2 {[%clk 0:00:12.8]} 46... Rg2+ {[%clk 0:00:40]} 47. Kd1
{[%clk 0:00:11.2]} 47... e3 {[%clk 0:00:39]} 48. Ke1 {[%clk 0:00:09.5]} 48...
Rb2 {[%clk 0:00:38.6]} 49. Rf3 {[%clk 0:00:09.2]} 49... Ke4 {[%clk 0:00:39]} 50.
Rg3 {[%clk 0:00:09.3]} 50... Kd3 {[%clk 0:00:39.4]} 51. Kf1 {[%clk 0:00:08.1]}
51... Rb1+ {[%clk 0:00:39.9]} 52. Kg2 {[%clk 0:00:08.5]} 52... Kd2 {[%clk
0:00:40.6]} 53. Rg5 {[%clk 0:00:08.5]} 53... e2 {[%clk 0:00:41]} 54. Rd5+ {[%clk
0:00:09.2]} 54... Kc3 {[%clk 0:00:41.5]} 0-1

[Event "Late-Titled-Tuesday-Blitz-January-23-2024"]
[Site "Chess.com"]
[Date "2024.01.23"]
[Round "2"]
[White "Siemba"]
[Black "Dedic8"]
[Result "1/2-1/2"]
[WhiteElo "2553"]
[BlackElo "2796"]
[TimeControl "180+1"]
[EndTime "14:17:54 PST"]
[Termination "Game drawn by repetition"]

1. e4 {[%clk 0:03:00.9]} 1... e5 {[%clk 0:03:00.5]} 2. Nf3 {[%clk 0:02:59.7]}
2... Nc6 {[%clk 0:03:01.1]} 3. Bc4 {[%clk 0:03:00]} 3... Nf6 {[%clk 0:03:01.1]}
4. d3 {[%clk 0:02:59]} 4... Bc5 {[%clk 0:03:00.8]} 5. Nc3 {[%clk 0:02:58.6]}
5... a6 {[%clk 0:03:00.5]} 6. a4 {[%clk 0:02:56.8]} 6... d6 {[%clk 0:03:00]} 7.
O-O {[%clk 0:02:54.7]} 7... Be6 {[%clk 0:02:59.3]} 8. Bxe6 {[%clk 0:02:41.3]}
8... fxe6 {[%clk 0:03:00.2]} 9. Ne2 {[%clk 0:02:41.3]} 9... O-O {[%clk
0:02:59.8]} 10. Ng3 {[%clk 0:02:41.9]} 10... Qe8 {[%clk 0:02:56.9]} 11. Be3
{[%clk 0:02:42]} 11... Bxe3 {[%clk 0:02:55]} 12. fxe3 {[%clk 0:02:42.9]} 12...
Nh5 {[%clk 0:02:44.5]} 13. Nxh5 {[%clk 0:02:35.8]} 13... Qxh5 {[%clk 0:02:45.4]}
14. Qe1 {[%clk 0:02:34.2]} 14... Rf6 {[%clk 0:02:44.8]} 15. Qh4 {[%clk 0:02:29]}
15... Qg6 {[%clk 0:02:39.2]} 16. c3 {[%clk 0:02:22.9]} 16... Raf8 {[%clk
0:02:34.7]} 17. Nd2 {[%clk 0:02:21.9]} 17... a5 {[%clk 0:02:24.1]} 18. Rxf6
{[%clk 0:02:20.8]} 18... Rxf6 {[%clk 0:02:25]} 19. Rf1 {[%clk 0:02:20.3]} 19...
Rxf1+ {[%clk 0:02:00.1]} 20. Nxf1 {[%clk 0:02:05.5]} 20... d5 {[%clk 0:01:47.4]}
21. exd5 {[%clk 0:01:57.6]} 21... exd5 {[%clk 0:01:48.3]} 22. e4 {[%clk
0:01:58.2]} 22... d4 {[%clk 0:01:43.4]} 23. Nd2 {[%clk 0:01:46.5]} 23... dxc3
{[%clk 0:01:35.9]} 24. bxc3 {[%clk 0:01:46.5]} 24... Qd6 {[%clk 0:01:36.6]} 25.
Qh3 {[%clk 0:01:42.3]} 25... Qc5+ {[%clk 0:01:34.2]} 26. Kf1 {[%clk 0:01:41.6]}
26... Qf8+ {[%clk 0:00:56.2]} 27. Ke2 {[%clk 0:01:39.3]} 27... Qe8 {[%clk
0:00:56.2]} 28. Nc4 {[%clk 0:01:35.8]} 28... g6 {[%clk 0:00:51.6]} 29. Qe3
{[%clk 0:01:25.3]} 29... b6 {[%clk 0:00:47.3]} 30. d4 {[%clk 0:01:12.7]} 30...
exd4 {[%clk 0:00:47.6]} 31. cxd4 {[%clk 0:01:13.6]} 31... Nb4 {[%clk 0:00:48.5]}
32. Qf4 {[%clk 0:00:30.2]} 32... Nd5 {[%clk 0:00:41.1]} 33. Qf3 {[%clk
0:00:15.1]} 33... Qxa4 {[%clk 0:00:40.7]} 34. Nd2 {[%clk 0:00:14.8]} 34... Ne7
{[%clk 0:00:34.4]} 35. d5 {[%clk 0:00:13]} 35... Qb5+ {[%clk 0:00:31.5]} 36. Ke1
{[%clk 0:00:12.1]} 36... a4 {[%clk 0:00:27.6]} 37. Qf6 {[%clk 0:00:12.6]} 37...
Qe8 {[%clk 0:00:27.8]} 38. Qe6+ {[%clk 0:00:12.5]} 38... Kf8 {[%clk 0:00:25.4]}
39. Qe5 {[%clk 0:00:09.8]} 39... Kg8 {[%clk 0:00:08.4]} 40. Qe6+ {[%clk
0:00:06]} 40... Kg7 {[%clk 0:00:08]} 41. Qe5+ {[%clk 0:00:06.1]} 41... Kg8
{[%clk 0:00:06]} 42. Qe6+ {[%clk 0:00:06.2]} 1/2-1/2

[Event "Late-Titled-Tuesday-Blitz-January-23-2024"]
[Site "Chess.com"]
[Date "2024.01.23"]
[Round "2"]
[White "carloseduar100"]
[Black "ccccvhhhj"]
[Result "1-0"]
[WhiteElo "2308"]
[BlackElo "2505"]
[TimeControl "180+1"]
[EndTime "14:17:54 PST"]
[Termination "carloseduar100 won on time"]

1. d4 {[%clk 0:03:00.9]} 1... e5 {[%clk 0:02:59.5]} 2. dxe5 {[%clk 0:03:00.5]}
2... d6 {[%clk 0:03:00.1]} 3. exd6 {[%clk 0:02:59.6]} 3... Bxd6 {[%clk 0:03:01]}
4. Nf3 {[%clk 0:02:59.1]} 4... Nc6 {[%clk 0:03:01.6]} 5. g3 {[%clk 0:02:59.3]}
5... Bg4 {[%clk 0:03:02.1]} 6. Bg2 {[%clk 0:02:59.6]} 6... Qe7 {[%clk
0:03:01.9]} 7. O-O {[%clk 0:02:59.7]} 7... O-O-O {[%clk 0:03:02.5]} 8. a3 {[%clk
0:02:59.2]} 8... Bxg3 {[%clk 0:03:00]} 9. Qe1 {[%clk 0:02:49.4]} 9... Bd6 {[%clk
0:02:55.8]} 10. b4 {[%clk 0:02:44.7]} 10... Nf6 {[%clk 0:02:55.7]} 11. c4 {[%clk
0:02:43]} 11... Ne5 {[%clk 0:02:50.1]} 12. c5 {[%clk 0:02:37.3]} 12... Nxf3+
{[%clk 0:02:50.1]} 13. exf3 {[%clk 0:02:36.4]} 13... Be5 {[%clk 0:02:39.9]} 14.
fxg4 {[%clk 0:02:29.9]} 14... Qe6 {[%clk 0:02:40.5]} 15. Nc3 {[%clk 0:02:21.1]}
15... Nxg4 {[%clk 0:02:28.5]} 16. Bb2 {[%clk 0:02:00.4]} 16... Nxh2 {[%clk
0:02:21.1]} 17. Qe4 {[%clk 0:01:57.6]} 17... c6 {[%clk 0:02:09.1]} 18. Rfe1
{[%clk 0:01:53.7]} 18... f6 {[%clk 0:02:08.6]} 19. Na4 {[%clk 0:01:43.8]} 19...
Ng4 {[%clk 0:01:56.6]} 20. Bxe5 {[%clk 0:01:42.1]} 20... Nxe5 {[%clk 0:01:57.5]}
21. f4 {[%clk 0:01:38]} 21... Qb3 {[%clk 0:01:42.4]} 22. fxe5 {[%clk 0:01:31.9]}
22... Qxa4 {[%clk 0:01:41.8]} 23. exf6 {[%clk 0:01:30.6]} 23... gxf6 {[%clk
0:01:42.7]} 24. Rad1 {[%clk 0:00:49.1]} 24... Rxd1 {[%clk 0:01:06.6]} 25. Qg4+
{[%clk 0:00:47.5]} 25... Kb8 {[%clk 0:01:05.1]} 26. Qxd1 {[%clk 0:00:47]} 26...
Qxa3 {[%clk 0:01:02.8]} 27. Qd6+ {[%clk 0:00:35.2]} 27... Ka8 {[%clk 0:01:02.5]}
28. Qxf6 {[%clk 0:00:27.4]} 28... Rb8 {[%clk 0:01:02.4]} 29. Bxc6 {[%clk
0:00:18]} 29... Qg3+ {[%clk 0:01:02.7]} 30. Kf1 {[%clk 0:00:15.6]} 30... Qd3+
{[%clk 0:00:58.4]} 31. Kg1 {[%clk 0:00:14.1]} 31... Qg3+ {[%clk 0:00:51.4]} 32.
Kf1 {[%clk 0:00:14.5]} 32... Qg8 {[%clk 0:00:29.6]} 33. Bf3 {[%clk 0:00:13.5]}
33... Rf8 {[%clk 0:00:27.7]} 34. Qe5 {[%clk 0:00:08.4]} 34... Rxf3+ {[%clk
0:00:26.4]} 35. Ke2 {[%clk 0:00:09.1]} 35... Rf8 {[%clk 0:00:25.5]} 36. Kd2
{[%clk 0:00:09.3]} 36... Qa2+ {[%clk 0:00:25.6]} 37. Kc1 {[%clk 0:00:08.5]}
37... Qa3+ {[%clk 0:00:24.8]} 38. Kb1 {[%clk 0:00:08.2]} 38... Qxb4+ {[%clk
0:00:24.4]} 39. Kc1 {[%clk 0:00:08.8]} 1-0